bitfinex-derivatives/quotes_BTCF0:USTF0_20240817
["timestamp","ask_amount","ask_price","bid_price","bid_amount"]
[1723887237397,0.08408,59437.0,59435.0,0.00025237]
[1723887240696,0.08408,59437.0,59425.0,0.063092]
[1723887240697,0.063084,59433.0,59425.0,0.063092]
[1723887241000,0.3608,59427.0,59423.0,0.06021731]
[1723887241197,0.6508,59427.0,59423.0,0.05001084]
[1723887241388,0.6508,59427.0,59425.0,0.05001084]
[1723887241585,0.6508,59427.0,59424.0,0.05001084]
[1723887241797,0.6508,59427.0,59425.0,0.008]
[1723887243098,0.6508,59427.0,59424.0,0.009]
[1723887243288,0.71389,59427.0,59425.0,0.008]
[1723887244704,0.71389,59427.0,59424.0,0.019]
[1723887244895,0.6508,59427.0,59424.0,0.019]
[1723887245094,0.6508,59427.0,59425.0,3.778]
[1723887245493,0.6508,59427.0,59425.0,3.786]
[1723887246200,0.6508,59427.0,59425.0,0.016]
[1723887246395,0.6508,59427.0,59425.0,0.079092]
[1723887248200,0.6508,59427.0,59425.0,0.016]
[1723887248201,0.71389,59427.0,59425.0,0.016]
[1723887249204,1.21873,59427.0,59425.0,0.016]
[1723887249404,0.50484,59426.0,59420.0,0.00025237]
[1723887249604,0.3608,59421.0,59420.0,0.00025237]
[1723887249804,0.3708,59421.0,59420.0,0.00025237]
[1723887250708,0.3608,59421.0,59420.0,0.00025237]
[1723887251002,0.3608,59421.0,59420.0,0.06326321]
[1723887251796,0.3628,59421.0,59420.0,0.07626321]
[1723887253308,0.002,59421.0,59420.0,0.07626321]
[1723887255808,0.002,59421.0,59420.0,0.02625237]
[1723887258203,0.002,59421.0,59420.0,0.06328786]
[1723887258713,0.002,59421.0,59420.0,0.10838786]
[1723887259309,0.002,59421.0,59420.0,0.27360207]
[1723887259612,0.00025237,59431.0,59420.0,1.10848207]
[1723887259813,0.00025237,59431.0,59428.0,0.12980766]
[1723887259997,0.00025237,59431.0,59428.0,0.06671966]
[1723887260305,0.00025237,59431.0,59429.0,0.111787]
[1723887260509,0.00025237,59431.0,59430.0,0.06671966]
[1723887260707,0.0455,59439.0,59430.0,0.08338243]
[1723887260899,0.0455,59439.0,59437.0,0.0500277]
[1723887261095,0.0455,59439.0,59438.0,0.0500277]
[1723887261502,0.36168,59442.0,59437.0,0.063078]
[1723887261707,0.3608,59442.0,59439.0,0.05001052]
[1723887261912,0.3608,59442.0,59440.0,0.05001052]
[1723887262099,0.3608,59442.0,59439.0,0.05001052]
[1723887263108,0.3608,59442.0,59438.0,0.05001052]
[1723887263303,0.006,59439.0,59438.0,0.05001052]
[1723887264111,0.018,59442.0,59439.0,0.002]
[1723887264705,0.008,59442.0,59439.0,0.001]
[1723887265015,0.007,59439.0,59438.0,0.002]
[1723887265212,0.007,59439.0,59438.0,0.001]
[1723887266221,0.3678,59439.0,59438.0,0.001]
[1723887266719,0.3678,59439.0,59437.0,0.063078]
[1723887266720,0.3608,59439.0,59437.0,0.11306839]
[1723887266913,0.3608,59439.0,59435.0,0.04999039]
[1723887267105,0.3608,59437.0,59431.0,0.04999039]
[1723887267306,0.3608,59432.0,59431.0,0.04999039]
[1723887267510,0.3608,59432.0,59429.0,0.16177739]
[1723887267706,0.3608,59437.0,59430.0,0.063086]
[1723887267915,0.3608,59437.0,59432.0,0.05001875]
[1723887268414,0.063078,59438.0,59434.0,0.05001875]
[1723887268915,0.063078,59438.0,59433.0,0.05001875]
[1723887269618,0.005,59439.0,59433.0,0.11310175]
[1723887269810,0.005,59439.0,59434.0,0.11310075]
[1723887270013,0.001,59437.0,59434.0,0.11310075]
[1723887270513,0.3608,59435.0,59424.0,0.32945237]
[1723887270719,0.26177059,59434.0,59424.0,0.32945237]
[1723887270919,0.17396636,59433.0,59424.0,0.32945237]
[1723887271122,0.17396636,59432.0,59431.0,0.063085]
[1723887271419,0.26736636,59432.0,59431.0,0.063085]
[1723887273020,0.62816636,59432.0,59431.0,0.063085]
[1723887273322,0.62816636,59432.0,59431.0,0.07323879]
[1723887275018,0.26736636,59432.0,59431.0,0.07323879]
[1723887275213,0.53476636,59432.0,59431.0,0.07323879]
[1723887276518,0.17396636,59432.0,59431.0,0.07323879]
[1723887276715,0.53476636,59432.0,59431.0,0.07323879]
[1723887277424,0.3608,59432.0,59431.0,0.07323879]
[1723887279514,0.063079,59437.0,59431.0,0.13989264]
[1723887279720,0.7216,59435.0,59434.0,0.05002557]
[1723887280315,0.7216,59435.0,59431.0,0.13989264]
[1723887280725,0.7216,59435.0,59434.0,0.05002338]
[1723887280922,0.7256,59435.0,59434.0,0.05002338]
[1723887281412,0.784681,59435.0,59433.0,0.06665385]
[1723887281615,0.784681,59435.0,59431.0,0.06665385]
[1723887281616,0.063083,59433.0,59431.0,0.06665385]
[1723887281818,0.063083,59433.0,59429.0,0.05003604]
[1723887281819,0.34,59433.0,59429.0,0.05003604]
[1723887282120,0.423886,59430.0,59425.0,0.05003604]
[1723887282317,0.3608,59426.0,59425.0,0.05003604]
[1723887282521,0.3608,59426.0,59425.0,0.05005862]
[1723887282815,0.3708,59426.0,59425.0,0.0500617]
[1723887283017,0.433891,59426.0,59424.0,0.00025237]
[1723887283223,0.433891,59426.0,59425.0,0.05006539]
[1723887283421,0.434891,59426.0,59425.0,0.05706539]
[1723887284229,0.434891,59426.0,59425.0,0.05006539]
[1723887284619,0.435891,59426.0,59425.0,0.05706539]
[1723887286317,0.435891,59426.0,59425.0,0.06406539]
[1723887287021,0.435891,59426.0,59425.0,0.014]
[1723887287827,0.796691,59426.0,59425.0,0.014]
[1723887288029,0.7336,59426.0,59425.0,0.014]
[1723887288530,0.7336,59426.0,59425.0,0.06406539]
[1723887289834,0.7336,59426.0,59425.0,0.014]
[1723887290235,0.012,59426.0,59425.0,0.014]
[1723887290536,0.7336,59426.0,59425.0,0.014]
[1723887290936,0.012,59426.0,59425.0,0.014]
[1723887291133,0.7336,59426.0,59425.0,0.014]
[1723887292936,0.012,59426.0,59425.0,0.014]
[1723887293132,0.7336,59426.0,59425.0,0.014]
[1723887297429,0.012,59426.0,59425.0,0.014]
[1723887297633,0.7336,59426.0,59425.0,0.014]
[1723887302137,0.7536,59426.0,59425.0,0.014]
[1723887302535,0.7536,59426.0,59425.0,0.06406539]
[1723887304437,0.7536,59426.0,59425.0,0.014]
[1723887304642,0.7236,59426.0,59425.0,0.014]
[1723887305141,0.7336,59426.0,59425.0,0.014]
[1723887308334,1.86551518,59426.0,59425.0,0.014]
[1723887308536,1.86551518,59426.0,59425.0,0.06414202]
[1723887308836,1.86551518,59426.0,59420.0,0.06665385]
[1723887308837,0.063095,59422.0,59420.0,0.06665385]
[1723887309037,0.4072,59421.0,59420.0,0.06665385]
[1723887309236,0.4072,59421.0,59419.0,0.05014778]
[1723887309237,0.9072,59421.0,59419.0,0.05014778]
[1723887309440,0.06723995,59420.0,59418.0,0.05014778]
[1723887309637,0.063099,59418.0,59416.0,0.05014778]
[1723887309945,0.063102,59416.0,59414.0,0.05034244]
[1723887310141,0.57216645,59415.0,59414.0,0.00019466]
[1723887310455,0.75216645,59415.0,59414.0,0.05036153]
[1723887310744,0.75216645,59415.0,59414.0,0.00019466]
[1723887310946,0.75216645,59415.0,59414.0,0.05036153]
[1723887311347,0.68492,59415.0,59414.0,0.00019466]
[1723887311749,0.18,59415.0,59414.0,0.05036153]
[1723887312441,0.181,59415.0,59414.0,0.05036153]
[1723887312745,0.182,59415.0,59414.0,0.05036153]
[1723887313048,0.9036,59415.0,59414.0,0.00019466]
[1723887317851,0.9967,59415.0,59414.0,0.00019466]
[1723887318849,0.8167,59415.0,59414.0,0.05036153]
[1723887319246,0.8167,59415.0,59414.0,0.00019466]
[1723887319443,0.8867,59415.0,59414.0,0.00019466]
[1723887323362,0.8167,59415.0,59414.0,0.00019466]
[1723887323553,0.8167,59415.0,59414.0,0.06705524]
[1723887323758,0.8167,59415.0,59414.0,0.00019466]
[1723887323954,0.7236,59415.0,59414.0,0.06705524]
[1723887324546,0.7236,59415.0,59414.0,0.00019466]
[1723887326348,0.7236,59415.0,59414.0,0.06705524]
[1723887326754,0.7236,59415.0,59414.0,0.00019466]
[1723887326952,0.7236,59415.0,59414.0,0.06697942]
[1723887327962,0.7436,59415.0,59414.0,0.06697942]
[1723887328664,0.7236,59415.0,59414.0,0.06697942]
[1723887330961,0.7236,59415.0,59414.0,0.03723311]
[1723887331456,0.7236,59415.0,59414.0,0.03723246]
[1723887333367,0.002,59415.0,59414.0,0.03723246]
[1723887334249,0.002,59415.0,59414.0,0.24874833]
[1723887335262,0.002,59415.0,59414.0,0.12054977]
[1723887335459,0.002,59415.0,59414.0,0.24874889]
[1723887335656,0.002,59415.0,59414.0,0.21171109]
[1723887335866,0.002,59415.0,59414.0,0.24874822]
[1723887336371,0.002,59415.0,59414.0,0.03723436]
[1723887336863,0.002,59415.0,59414.0,0.00019466]
[1723887337167,0.002,59415.0,59414.0,0.03723373]
[1723887337362,0.002,59415.0,59414.0,0.24875395]
[1723887337670,0.002,59415.0,59414.0,0.03723373]
[1723887338356,0.002,59415.0,59414.0,0.12055104]
[1723887338558,0.002,59415.0,59414.0,0.24875351]
[1723887338767,0.002,59415.0,59414.0,0.1654362]
[1723887340263,0.002,59415.0,59414.0,0.16543457]
[1723887342366,0.002,59415.0,59414.0,0.18293567]
[1723887344367,0.3608,59423.0,59414.0,0.18293567]
[1723887344573,0.3608,59423.0,59421.0,0.08354325]
[1723887344870,0.3608,59423.0,59422.0,0.0545328]
[1723887345766,0.3608,59423.0,59422.0,0.03703744]
[1723887345964,0.3618,59423.0,59422.0,0.03703744]
[1723887346564,0.001,59423.0,59422.0,0.03903744]
[1723887346769,0.002,59423.0,59422.0,0.03903744]
[1723887347864,0.002,59423.0,59422.0,0.04403744]
[1723887348766,0.002,59423.0,59422.0,0.04403256]
[1723887349269,0.002,59423.0,59422.0,0.05695875]
[1723887352270,0.002,59423.0,59422.0,0.12005375]
[1723887352866,0.002,59423.0,59422.0,0.08302148]
[1723887353064,0.002,59423.0,59422.0,0.12005465]
[1723887353265,0.002,59423.0,59422.0,0.2035979]
[1723887353466,0.002,59423.0,59422.0,0.33177957]
[1723887353962,0.002,59423.0,59422.0,0.29474911]
[1723887354968,0.002,59423.0,59422.0,0.16656473]
[1723887355167,0.002,59423.0,59422.0,0.08302148]
[1723887356669,0.002,59423.0,59422.0,0.12005455]
[1723887356975,0.002,59423.0,59422.0,0.08302148]
[1723887357474,0.002,59423.0,59422.0,0.12005483]
[1723887360366,0.002,59423.0,59422.0,0.20359808]
[1723887360767,0.002,59423.0,59422.0,0.12005483]
[1723887360970,0.002,59423.0,59422.0,0.08302148]
[1723887361171,0.002,59423.0,59422.0,0.12005477]
[1723887361373,0.002,59423.0,59422.0,0.20359802]
[1723887361775,0.002,59423.0,59422.0,0.33176347]
[1723887362075,0.002,59423.0,59422.0,0.33176509]
[1723887362666,0.002,59423.0,59422.0,0.33176493]
[1723887362880,0.002,59423.0,59422.0,0.33176426]
[1723887363363,0.002,59423.0,59422.0,0.24823973]
[1723887363566,0.002,59423.0,59422.0,0.33176867]
[1723887364475,0.002,59423.0,59422.0,0.29473554]
[1723887364780,0.002,59423.0,59422.0,0.33176876]
[1723887365278,0.002,59423.0,59422.0,0.24823982]
[1723887365675,0.002,59423.0,59422.0,0.33177595]
[1723887365883,0.002,59423.0,59422.0,0.33177788]
[1723887366081,0.002,59423.0,59422.0,0.24823982]
[1723887367474,0.002,59423.0,59422.0,0.2482377]
[1723887368379,0.002,59423.0,59422.0,0.3413377]
[1723887368579,0.002,59423.0,59422.0,0.34133699]
[1723887369176,0.002,59423.0,59422.0,0.30430448]
[1723887369377,0.002,59423.0,59422.0,0.34133698]
[1723887371381,0.002,59423.0,59422.0,0.44158548]
[1723887371770,0.05061454,59431.0,59422.0,0.29573072]
[1723887371973,0.05061454,59431.0,59430.0,0.0931]
[1723887372174,0.00025237,59431.0,59430.0,0.27580424]
[1723887373174,0.00025237,59431.0,59430.0,0.27680424]
[1723887373569,0.00125237,59431.0,59430.0,0.27680424]
[1723887374079,0.00125237,59431.0,59430.0,0.36035752]
[1723887374277,0.00125237,59431.0,59430.0,0.34286252]
[1723887374479,0.00125237,59431.0,59430.0,0.36034673]
[1723887374676,0.00125237,59431.0,59430.0,0.36033106]
[1723887375278,0.00025237,59431.0,59430.0,0.23316373]
[1723887376880,0.00025237,59431.0,59430.0,0.14961671]
[1723887378472,0.00025237,59431.0,59430.0,0.1321325]
[1723887379584,0.00025237,59431.0,59430.0,0.21567952]
[1723887380178,0.00025237,59431.0,59430.0,0.34384595]
[1723887380488,0.00025237,59431.0,59430.0,0.21567952]
[1723887380674,0.00025237,59431.0,59430.0,0.35625626]
[1723887380876,0.0484,59438.0,59437.0,0.063079]
[1723887381072,0.0484,59438.0,59437.0,0.1932115]
[1723887381282,0.0484,59438.0,59437.0,0.40485489]
[1723887381473,0.0484,59438.0,59437.0,0.32136225]
[1723887381674,0.1382,59442.0,59440.0,0.063075]
[1723887381881,0.0451,59442.0,59441.0,0.0931]
[1723887383189,0.0571,59442.0,59441.0,0.0931]
[1723887383572,0.0571,59442.0,59441.0,0.15983178]
[1723887384372,0.0671,59442.0,59441.0,0.0931]
[1723887384572,0.022,59442.0,59441.0,0.0931]
[1723887384977,0.022,59442.0,59441.0,0.15983178]
[1723887385177,0.023,59442.0,59441.0,0.17228439]
[1723887385380,0.023,59442.0,59441.0,0.10555261]
[1723887388490,0.4769,59442.0,59441.0,0.01245261]
[1723887388781,0.4769,59442.0,59440.0,0.063075]
[1723887389985,0.4759,59442.0,59440.0,0.07537832]
[1723887390888,0.3608,59441.0,59440.0,0.07537832]
[1723887392382,0.1141,59442.0,59441.0,0.063074]
[1723887392585,0.4539,59442.0,59441.0,0.063074]
[1723887393187,0.4639,59442.0,59441.0,0.063074]
[1723887393789,0.4759,59442.0,59441.0,0.063074]
[1723887394193,0.3728,59442.0,59441.0,0.063074]
[1723887394385,0.3838,59442.0,59441.0,0.063074]
[1723887396589,0.023,59442.0,59441.0,0.063074]
[1723887396792,0.3838,59442.0,59441.0,0.063074]
[1723887397699,0.023,59442.0,59441.0,0.063074]
[1723887397901,0.3838,59442.0,59441.0,0.063074]
[1723887398502,0.3838,59442.0,59441.0,0.12980578]
[1723887400396,0.3838,59442.0,59441.0,0.063074]
[1723887400594,0.00025237,59447.0,59441.0,0.967754]
[1723887400795,0.3608,59456.0,59455.0,0.06306]
[1723887400999,0.3608,59456.0,59455.0,0.15616]
[1723887401203,0.3608,59456.0,59455.0,0.36761123]
[1723887401497,0.3608,59456.0,59455.0,0.15616]
[1723887402491,0.3748,59456.0,59455.0,0.15616]
[1723887404203,0.3748,59456.0,59455.0,0.15716]
[1723887404204,0.3768,59456.0,59455.0,0.15716]
[1723887404405,0.3768,59456.0,59455.0,0.22371328]
[1723887404997,0.3768,59456.0,59455.0,0.23591598]
[1723887405199,0.3768,59456.0,59455.0,0.1693627]
[1723887405403,0.3768,59456.0,59455.0,0.2359048]
[1723887406000,0.48122271,59456.0,59455.0,0.05009147]
[1723887406207,0.48122271,59456.0,59455.0,0.11315147]
[1723887406208,0.64871606,59456.0,59455.0,0.11315147]
[1723887406703,0.48122271,59456.0,59455.0,0.11315147]
[1723887408011,0.12042271,59456.0,59455.0,0.11315147]
[1723887408610,0.11778521,59456.0,59455.0,0.11315147]
[1723887409119,0.3622418,59456.0,59455.0,0.11315147]
[1723887409617,0.17778505,59456.0,59455.0,0.11315147]
[1723887410114,0.17778505,59456.0,59455.0,0.07670741]
[1723887410919,0.07572842,59456.0,59455.0,0.07670741]
[1723887412921,0.016,59456.0,59455.0,0.07670741]
[1723887416318,0.016,59456.0,59455.0,0.1432256]
[1723887416921,0.3608,59459.0,59458.0,0.063056]
[1723887417129,0.3608,59459.0,59458.0,0.156156]
[1723887417329,0.3608,59459.0,59458.0,0.20604374]
[1723887418131,0.3728,59459.0,59458.0,0.20704374]
[1723887418330,0.3728,59459.0,59458.0,0.157156]
[1723887418518,0.3728,59459.0,59458.0,0.158156]
[1723887421431,0.012,59459.0,59458.0,0.158156]
[1723887423328,0.012,59459.0,59458.0,0.22467419]
[1723887423831,0.36105237,59461.0,59460.0,0.063054]
[1723887424031,0.38105237,59461.0,59460.0,0.063054]
[1723887424428,0.38105237,59461.0,59460.0,0.156154]
[1723887425334,0.38105237,59461.0,59460.0,0.157154]
[1723887425538,0.38105237,59461.0,59460.0,0.22367219]
[1723887425731,0.38105237,59461.0,59460.0,0.157154]
[1723887425932,0.38105237,59461.0,59460.0,0.158154]
[1723887426323,0.38105237,59461.0,59460.0,0.22467219]
[1723887427430,0.38105237,59461.0,59460.0,0.158154]
[1723887428429,0.02025237,59461.0,59460.0,0.158154]
[1723887428625,0.38105237,59461.0,59460.0,0.158154]
[1723887429541,0.38105237,59461.0,59460.0,0.24142538]
[1723887430440,0.38105237,59461.0,59460.0,0.28625753]
[1723887433940,0.02025237,59461.0,59460.0,0.28625753]
[1723887434140,0.38105237,59461.0,59460.0,0.28625753]
[1723887435343,0.02025237,59461.0,59460.0,0.28625753]
[1723887435545,0.38105237,59461.0,59460.0,0.28625753]
[1723887435936,0.02025237,59461.0,59460.0,0.28625753]
[1723887436136,0.02025237,59461.0,59460.0,0.19315753]
[1723887436137,0.38105237,59461.0,59460.0,0.19315753]
[1723887436345,0.38105237,59461.0,59460.0,0.28625753]
[1723887436533,0.02025237,59461.0,59460.0,0.28625753]
[1723887436736,0.38105237,59461.0,59460.0,0.28625753]
[1723887438045,0.02025237,59461.0,59460.0,0.28625753]
[1723887438242,0.38105237,59461.0,59460.0,0.28625753]
[1723887439140,0.02025237,59461.0,59460.0,0.28625753]
[1723887439344,0.38105237,59461.0,59460.0,0.28625753]
[1723887439849,0.36105237,59461.0,59460.0,0.28625753]
[1723887442243,0.36105237,59461.0,59460.0,0.32326712]
[1723887442641,0.36105237,59461.0,59460.0,0.34073977]
[1723887443257,0.00025237,59461.0,59460.0,0.34073977]
[1723887443458,0.36105237,59461.0,59460.0,0.34073977]
[1723887443749,0.36105237,59461.0,59460.0,0.28625766]
[1723887443947,0.36105237,59461.0,59460.0,0.3407399]
[1723887446346,0.00025237,59461.0,59460.0,0.3407399]
[1723887446552,0.36105237,59461.0,59460.0,0.3407399]
[1723887448248,0.36105237,59461.0,59460.0,0.34074021]
[1723887448457,0.00025237,59461.0,59460.0,0.34074021]
[1723887449262,0.36105237,59461.0,59460.0,0.34074021]
[1723887449656,0.00025237,59461.0,59460.0,0.34074021]
[1723887449856,0.36105237,59461.0,59460.0,0.44075083]
[1723887450155,0.36105237,59461.0,59460.0,0.34074021]
[1723887450854,0.00025237,59461.0,59460.0,0.34074021]
[1723887451157,0.36105237,59461.0,59460.0,0.34074021]
[1723887452355,0.36105237,59461.0,59460.0,0.34074866]
[1723887452950,0.00025237,59461.0,59460.0,0.34074866]
[1723887453151,0.36105237,59461.0,59460.0,0.34074866]
[1723887453661,0.36105237,59461.0,59460.0,0.34074823]
[1723887455255,0.00025237,59461.0,59460.0,0.44104274]
[1723887455462,0.36105237,59461.0,59460.0,0.44104274]
[1723887456750,0.36105237,59461.0,59460.0,0.34074823]
[1723887457563,0.36105237,59461.0,59460.0,0.34074793]
[1723887459253,0.36105237,59461.0,59460.0,0.24764793]
[1723887463961,0.36105237,59461.0,59460.0,0.23016752]
[1723887464165,0.36105237,59461.0,59460.0,0.24764252]
[1723887464473,0.36105237,59461.0,59460.0,0.19315767]
[1723887464765,0.36105237,59461.0,59460.0,0.24764253]
[1723887466369,0.00025237,59461.0,59460.0,0.24764253]
[1723887466568,0.36105237,59461.0,59460.0,0.24764253]
[1723887466967,0.36105237,59461.0,59460.0,0.20311736]
[1723887467167,0.36105237,59461.0,59460.0,0.11953886]
[1723887468271,0.36105237,59461.0,59460.0,0.20312228]
[1723887468665,0.36105237,59461.0,59460.0,0.33122903]
[1723887469371,0.36105237,59461.0,59460.0,0.24765053]
[1723887470777,0.00025237,59461.0,59460.0,0.24765053]
[1723887470966,0.36105237,59461.0,59460.0,0.24765053]
[1723887472369,0.36105237,59461.0,59460.0,0.21064148]
[1723887472570,0.36105237,59461.0,59460.0,0.24765113]
[1723887474484,0.00025237,59461.0,59460.0,0.24765113]
[1723887474670,0.36105237,59461.0,59460.0,0.24765113]
[1723887475475,0.36105237,59461.0,59460.0,4.01765113]
[1723887476475,0.36105237,59461.0,59460.0,4.01765109]
[1723887476684,0.00025237,59461.0,59460.0,4.01765109]
[1723887476975,0.36105237,59461.0,59460.0,4.00017039]
[1723887477177,0.36105237,59461.0,59460.0,4.01765109]
[1723887478076,0.00025237,59461.0,59460.0,4.01765109]
[1723887478285,0.36105237,59461.0,59460.0,4.01765109]
[1723887478668,0.00025237,59461.0,59460.0,4.01765109]
[1723887478873,0.36105237,59461.0,59460.0,4.1179456]
[1723887480980,0.36105237,59461.0,59460.0,0.24765109]
[1723887482885,0.36105237,59461.0,59460.0,0.39823504]
[1723887483278,0.4084,59468.0,59467.0,0.063047]
[1723887483474,0.4084,59468.0,59467.0,0.40481028]
[1723887483676,0.4084,59468.0,59467.0,0.32125533]
[1723887484288,0.0669776,59475.0,59473.0,0.063041]
[1723887484483,0.0669776,59486.0,59474.0,0.83036574]
[1723887484676,0.0669776,59491.0,59489.0,0.063024]
[1723887484877,0.3608,59493.0,59491.0,0.063022]
[1723887485588,0.3608,59493.0,59492.0,0.10359795]
[1723887485790,0.3608,59493.0,59492.0,0.03699067]
[1723887485984,0.3608,59493.0,59492.0,0.04995572]
[1723887486180,0.3608,59493.0,59490.0,0.01220894]
[1723887486490,0.3608,59493.0,59491.0,0.18004896]
[1723887486782,0.3608,59493.0,59492.0,0.08694896]
[1723887487079,0.3608,59493.0,59492.0,0.03799324]
[1723887487481,0.3608,59493.0,59492.0,0.001]
[1723887487685,0.3608,59493.0,59491.0,0.001]
[1723887487883,0.156121,59492.0,59491.0,0.001]
[1723887488384,0.660401,59492.0,59491.0,0.001]
[1723887488684,1.060401,59492.0,59491.0,0.001]
[1723887488883,1.070401,59492.0,59491.0,0.001]
[1723887489085,0.063026,59487.0,59486.0,1e-08]
[1723887489277,0.556926,59487.0,59486.0,1e-08]
[1723887489583,1.461246,59487.0,59486.0,1e-08]
[1723887489774,1.021246,59487.0,59486.0,1e-08]
[1723887490487,0.516926,59487.0,59486.0,0.00100001]
[1723887490783,0.516926,59487.0,59486.0,0.00200001]
[1723887490994,0.423826,59487.0,59486.0,0.00200001]
[1723887491284,1.021246,59487.0,59486.0,0.00200001]
[1723887492379,0.516926,59487.0,59486.0,0.00200001]
[1723887494088,0.423826,59487.0,59486.0,0.00200001]
[1723887494881,0.516926,59487.0,59486.0,0.00200001]
[1723887495185,0.156126,59487.0,59486.0,0.00200001]
[1723887495981,0.300926,59487.0,59486.0,0.00200001]
[1723887496488,0.300926,59487.0,59486.0,0.00100001]
[1723887496688,0.300926,59487.0,59486.0,0.00200001]
[1723887498587,0.320926,59487.0,59486.0,0.00200001]
[1723887499780,0.320926,59487.0,59476.0,0.04995572]
[1723887499781,1.30222,59487.0,59476.0,0.04995572]
[1723887499980,0.0931,59476.0,59473.0,0.04995572]
[1723887500194,0.0931,59476.0,59472.0,0.04995572]
[1723887500390,0.0931,59476.0,59471.0,0.11299872]
[1723887500590,0.0931,59476.0,59471.0,0.063043]
[1723887500889,0.098,59475.0,59471.0,0.07487926]
[1723887501093,0.098,59475.0,59473.0,0.002]
[1723887502294,0.3608,59477.0,59473.0,0.002]
[1723887502482,0.06328638,59479.0,59476.0,0.14305572]
[1723887502483,0.00025138,59479.0,59476.0,0.14305572]
[1723887502678,0.00025138,59479.0,59477.0,0.11289664]
[1723887502887,0.00025138,59479.0,59477.0,0.063036]
[1723887503297,0.00025138,59479.0,59478.0,0.04985455]
[1723887504192,0.09335138,59479.0,59478.0,0.04985455]
[1723887504397,0.09335138,59479.0,59477.0,0.073036]
[1723887504589,0.00025138,59479.0,59477.0,0.11789055]
[1723887504786,0.00025138,59479.0,59478.0,0.05285455]
[1723887504991,0.00025138,59479.0,59478.0,0.05685455]
[1723887505290,0.00025138,59479.0,59478.0,0.007]
[1723887506185,0.00025138,59479.0,59478.0,0.004]
[1723887506592,0.00025138,59479.0,59477.0,0.073036]
[1723887506794,0.00025138,59479.0,59478.0,0.003]
[1723887507392,0.00025138,59479.0,59478.0,0.04399724]
[1723887508498,0.00025138,59479.0,59478.0,0.11060452]
[1723887508701,0.00025138,59479.0,59478.0,0.09209724]
[1723887511396,0.00025138,59479.0,59478.0,0.17554811]
[1723887511593,0.00025138,59479.0,59478.0,0.30360114]
[1723887512205,0.00025138,59479.0,59478.0,0.22015027]
[1723887513100,0.00025138,59479.0,59478.0,0.22014795]
[1723887513498,0.4539,59485.0,59478.0,0.22014795]
[1723887513698,0.4539,59485.0,59482.0,0.0931]
[1723887514194,0.4539,59485.0,59482.0,0.17639859]
[1723887515091,0.4539,59485.0,59478.0,0.15526528]
[1723887515092,0.3708,59485.0,59484.0,0.06666963]
[1723887515293,0.3708,59485.0,59484.0,0.06667373]
[1723887515294,0.4639,59485.0,59484.0,0.06667373]
[1723887515899,0.4539,59485.0,59484.0,0.06667373]
[1723887516100,0.4639,59485.0,59484.0,0.06667373]
[1723887516300,0.4639,59485.0,59480.0,0.08329859]
[1723887516502,0.3718,59485.0,59481.0,0.03699629]
[1723887516705,0.0931,59482.0,59480.0,0.08329859]
[1723887516899,0.0931,59482.0,59481.0,0.03699674]
[1723887517304,0.69746,59482.0,59481.0,0.03699674]
[1723887517507,0.760491,59482.0,59480.0,0.06871956]
[1723887517801,0.760491,59482.0,59469.0,0.06675717]
[1723887517802,0.063044,59470.0,59469.0,0.06675717]
[1723887518003,0.433844,59470.0,59468.0,0.05032552]
[1723887518301,0.1413,59469.0,59468.0,0.00025213]
[1723887518603,0.1713,59469.0,59468.0,0.00025213]
[1723887519616,0.1713,59469.0,59468.0,0.00525213]
[1723887520310,0.1413,59469.0,59468.0,0.00525213]
[1723887520801,0.1413,59469.0,59468.0,0.01025213]
[1723887521705,0.0962,59469.0,59468.0,0.01025213]
[1723887521911,0.3608,59470.0,59468.0,0.06032552]
[1723887523200,0.3608,59470.0,59469.0,0.05007339]
[1723887523395,0.3608,59470.0,59468.0,0.01025213]
[1723887524013,0.3608,59470.0,59469.0,0.04995617]
[1723887524608,0.3608,59470.0,59468.0,0.0622083]
[1723887525202,0.3608,59470.0,59468.0,0.0572083]
[1723887525413,0.3608,59470.0,59469.0,0.004]
[1723887525798,0.3608,59470.0,59469.0,0.04995617]
[1723887526001,0.3608,59470.0,59468.0,0.00525213]
[1723887526002,0.3608,59470.0,59468.0,0.0602083]
[1723887526404,0.3608,59470.0,59469.0,0.004]
[1723887526608,0.3608,59470.0,59469.0,0.008]
[1723887527308,0.3608,59470.0,59469.0,0.004]
[1723887528110,0.3608,59470.0,59468.0,0.01025213]
[1723887528611,0.3608,59470.0,59469.0,3.77]
[1723887528810,0.3608,59470.0,59469.0,3.774]
[1723887529010,0.3608,59470.0,59469.0,3.778]
[1723887529305,0.3608,59470.0,59469.0,3.774]
[1723887530017,0.3608,59470.0,59469.0,0.008]
[1723887530710,0.3608,59470.0,59469.0,0.0450056]
[1723887531417,0.109638,59476.0,59469.0,0.08200862]
[1723887531607,0.109638,59476.0,59475.0,0.04994119]
[1723887531803,0.109638,59476.0,59475.0,0.0370056]
[1723887532216,0.0466,59476.0,59475.0,0.08694683]
[1723887532515,0.0466,59476.0,59475.0,0.0370056]
[1723887532919,0.0466,59476.0,59473.0,0.04993721]
[1723887533322,0.0496,59476.0,59473.0,0.04993721]
[1723887533615,0.0516,59476.0,59473.0,0.04993721]
[1723887534317,0.0516,59476.0,59474.0,0.04993721]
[1723887534617,0.0486,59476.0,59474.0,0.04993721]
[1723887534817,0.0486,59476.0,59475.0,0.004]
[1723887535208,0.0486,59476.0,59474.0,0.04993721]
[1723887535608,0.0466,59476.0,59474.0,0.04993721]
[1723887536109,0.0466,59476.0,59473.0,0.06293721]
[1723887536110,0.0566,59476.0,59473.0,0.06293721]
[1723887536310,0.0566,59476.0,59473.0,0.013]
[1723887536513,0.0566,59476.0,59474.0,0.005]
[1723887536514,0.063039,59475.0,59474.0,0.005]
[1723887536814,0.093039,59475.0,59474.0,0.005]
[1723887537917,1.137439,59475.0,59474.0,0.005]
[1723887538120,0.2325,59472.0,59468.0,0.00025213]
[1723887538420,0.3608,59469.0,59468.0,0.00025213]
[1723887538620,0.3708,59469.0,59468.0,0.00025213]
[1723887539310,0.3708,59469.0,59468.0,0.00825213]
[1723887539507,0.4808,59469.0,59468.0,0.00825213]